[Event "*** Titled Tuesday Blitz"]
[Site "Chess.com"]
[Date "2021.03.09"]
[Round "5"]
[White "BashirliSaadat"]
[Black "CakeinSpace2002"]
[Result "0-1"]
[WhiteElo "2181"]
[BlackElo "2410"]
[TimeControl "180+1"]
[EndTime "11:00:16 PST"]
[Termination "CakeinSpace2002 won by resignation"]

1. e4 {[%clk 0:03:00.9]} 1... d6 {[%clk 0:02:54.3]} 2. d4 {[%clk 0:03:00.4]}
2... g6 {[%clk 0:02:54.6]} 3. Nc3 {[%clk 0:02:59]} 3... Bg7 {[%clk 0:02:54.8]}
4. Be2 {[%clk 0:02:59.2]} 4... c6 {[%clk 0:02:53.1]} 5. h4 {[%clk 0:02:58.2]}
5... h5 {[%clk 0:02:51.4]} 6. Nf3 {[%clk 0:02:57.1]} 6... b5 {[%clk 0:02:46.1]}
7. a3 {[%clk 0:02:52.7]} 7... Nf6 {[%clk 0:02:43.8]} 8. O-O {[%clk 0:02:52]}
8... Nbd7 {[%clk 0:02:39.3]} 9. e5 {[%clk 0:02:16.8]} 9... dxe5 {[%clk
0:02:25.6]} 10. dxe5 {[%clk 0:02:17.7]} 10... Ng4 {[%clk 0:02:22.9]} 11. e6
{[%clk 0:02:14.5]} 11... fxe6 {[%clk 0:02:23.8]} 12. Bd3 {[%clk 0:02:10.6]}
12... Nde5 {[%clk 0:02:19.4]} 13. Nxe5 {[%clk 0:01:53.4]} 13... Nxe5 {[%clk
0:02:20.3]} 14. f4 {[%clk 0:01:49.1]} 14... Nxd3 {[%clk 0:02:18.8]} 15. cxd3
{[%clk 0:01:48.7]} 15... O-O {[%clk 0:02:16.9]} 16. Qf3 {[%clk 0:01:45.8]} 16...
Bd7 {[%clk 0:01:49.2]} 17. Ne4 {[%clk 0:01:43]} 17... e5 {[%clk 0:01:42.6]} 18.
Qg3 {[%clk 0:01:29.2]} 18... Bf5 {[%clk 0:01:37.1]} 19. fxe5 {[%clk 0:01:18.5]}
19... Qd4+ {[%clk 0:01:34.4]} 20. Qe3 {[%clk 0:01:10]} 20... Bxe5 {[%clk
0:01:32]} 21. Rb1 {[%clk 0:01:00.9]} 21... Qxe3+ {[%clk 0:01:22.3]} 22. Bxe3
{[%clk 0:00:59.9]} 22... Rad8 {[%clk 0:01:21.4]} 23. Rfd1 {[%clk 0:00:49.3]}
23... a6 {[%clk 0:01:20.3]} 24. b3 {[%clk 0:00:46.6]} 24... Be6 {[%clk 0:01:16]}
25. Nc5 {[%clk 0:00:44.7]} 25... Bd5 {[%clk 0:01:14.6]} 26. d4 {[%clk
0:00:43.1]} 26... Bf6 {[%clk 0:01:10.4]} 27. g3 {[%clk 0:00:32.2]} 27... e5
{[%clk 0:01:09.1]} 28. dxe5 {[%clk 0:00:29.2]} 28... Bxe5 {[%clk 0:01:10]} 29.
Bg5 {[%clk 0:00:26.6]} 29... Rde8 {[%clk 0:01:03.6]} 30. Nd7 {[%clk 0:00:25.1]}
30... Rf3 {[%clk 0:00:57.4]} 31. Nxe5 {[%clk 0:00:20.4]} 31... Rxe5 {[%clk
0:00:58.3]} 32. Bf4 {[%clk 0:00:20.5]} 32... Ree3 {[%clk 0:00:57.9]} 33. Bxe3
{[%clk 0:00:19.3]} 33... Rxe3 {[%clk 0:00:58.4]} 34. Kf2 {[%clk 0:00:17.7]}
34... Rf3+ {[%clk 0:00:57.5]} 35. Kg2 {[%clk 0:00:11.9]} 35... Re3+ {[%clk
0:00:50.2]} 36. Kh3 {[%clk 0:00:08.5]} 36... Rc3 {[%clk 0:00:47.8]} 37. Re1
{[%clk 0:00:05.4]} 37... Rc2 {[%clk 0:00:45.4]} 38. Rg1 {[%clk 0:00:03.2]} 38...
Be6+ {[%clk 0:00:41.3]} 39. g4 {[%clk 0:00:03.7]} 39... Bxg4+ {[%clk 0:00:41.1]}
40. Kg3 {[%clk 0:00:03.8]} 40... Kg7 {[%clk 0:00:39.3]} 41. Kf4 {[%clk
0:00:04.1]} 41... Rf2+ {[%clk 0:00:37.2]} 42. Ke5 {[%clk 0:00:02.5]} 42... c5
{[%clk 0:00:37]} 43. Kd5 {[%clk 0:00:02.5]} 43... Rf5+ {[%clk 0:00:35.4]} 44.
Kc6 {[%clk 0:00:02.5]} 44... c4 {[%clk 0:00:34.9]} 45. bxc4 {[%clk 0:00:02.3]}
45... bxc4 {[%clk 0:00:35.8]} 46. Rb7+ {[%clk 0:00:02.3]} 46... Kh6 {[%clk
0:00:35.4]} 47. Kb6 {[%clk 0:00:02.2]} 47... c3 {[%clk 0:00:33.3]} 48. Rc7
{[%clk 0:00:02.3]} 48... Rb5+ {[%clk 0:00:31.9]} 49. Kxa6 {[%clk 0:00:02]} 49...
Rb3 {[%clk 0:00:31.7]} 50. a4 {[%clk 0:00:01.7]} 50... Ra3 {[%clk 0:00:31.1]}
51. a5 {[%clk 0:00:02.1]} 51... Bf5 {[%clk 0:00:29.1]} 52. Kb6 {[%clk
0:00:02.4]} 52... c2 {[%clk 0:00:29.1]} 53. Rc1 {[%clk 0:00:02.4]} 53... Rb3+
{[%clk 0:00:28.7]} 54. Ka6 {[%clk 0:00:02.2]} 54... Rb1 {[%clk 0:00:27.6]} 55.
R1xc2 {[%clk 0:00:01.7]} 55... Bxc2 {[%clk 0:00:27.3]} 56. Rxc2 {[%clk
0:00:02.6]} 56... Rb4 {[%clk 0:00:27.6]} 57. Rc6 {[%clk 0:00:02.8]} 57... Rxh4
{[%clk 0:00:26.9]} 58. Kb7 {[%clk 0:00:03]} 58... Ra4 {[%clk 0:00:26.4]} 59. a6
{[%clk 0:00:03.3]} 59... h4 {[%clk 0:00:26.3]} 60. a7 {[%clk 0:00:03.3]} 60...
Rxa7+ {[%clk 0:00:26.1]} 61. Kxa7 {[%clk 0:00:03]} 61... Kg5 {[%clk 0:00:23.8]}
62. Rc1 {[%clk 0:00:03.5]} 62... h3 {[%clk 0:00:23.8]} 63. Kb6 {[%clk
0:00:04.1]} 63... Kh4 {[%clk 0:00:23.7]} 64. Kc5 {[%clk 0:00:04.6]} 64... h2
{[%clk 0:00:24]} 65. Kd5 {[%clk 0:00:03.7]} 65... g5 {[%clk 0:00:23.8]} 66. Ke5
{[%clk 0:00:03.8]} 66... g4 {[%clk 0:00:24.1]} 67. Kf4 {[%clk 0:00:03.8]} 67...
g3 {[%clk 0:00:24.4]} 68. Kf3 {[%clk 0:00:03.5]} 68... Kh3 {[%clk 0:00:24.1]}
69. Rc6 {[%clk 0:00:02.3]} 69... h1=Q+ {[%clk 0:00:22.8]} 70. Kf4 {[%clk
0:00:02.7]} 70... Qxc6 {[%clk 0:00:23]} 71. Kg5 {[%clk 0:00:03.2]} 71... Qc1+
{[%clk 0:00:23]} 0-1

[Event "*** Titled Tuesday Blitz"]
[Site "Chess.com"]
[Date "2021.03.09"]
[Round "5"]
[White "J36225"]
[Black "azikom"]
[Result "0-1"]
[WhiteElo "2492"]
[BlackElo "2640"]
[TimeControl "180+1"]
[EndTime "11:00:21 PST"]
[Termination "azikom won by checkmate"]

1. e4 {[%clk 0:02:54.3]} 1... e5 {[%clk 0:02:59.2]} 2. Nf3 {[%clk 0:02:53.7]}
2... Nc6 {[%clk 0:02:59.7]} 3. Bb5 {[%clk 0:02:52.9]} 3... Nge7 {[%clk
0:02:59.1]} 4. O-O {[%clk 0:02:50.8]} 4... a6 {[%clk 0:02:59.4]} 5. Ba4 {[%clk
0:02:50.6]} 5... d6 {[%clk 0:02:57.9]} 6. c3 {[%clk 0:02:50.1]} 6... Bd7 {[%clk
0:02:58.3]} 7. d4 {[%clk 0:02:49.3]} 7... Ng6 {[%clk 0:02:58.4]} 8. Bg5 {[%clk
0:02:44.2]} 8... Be7 {[%clk 0:02:57.9]} 9. Bxe7 {[%clk 0:02:43.1]} 9... Qxe7
{[%clk 0:02:57.8]} 10. dxe5 {[%clk 0:02:40]} 10... dxe5 {[%clk 0:02:56.9]} 11.
Nbd2 {[%clk 0:02:34.3]} 11... O-O {[%clk 0:02:56.6]} 12. Bb3 {[%clk 0:02:16.2]}
12... Qf6 {[%clk 0:02:49.5]} 13. h3 {[%clk 0:02:13.9]} 13... Rad8 {[%clk
0:02:44.8]} 14. Nh2 {[%clk 0:01:38.1]} 14... Bxh3 {[%clk 0:02:35.7]} 15. gxh3
{[%clk 0:01:29]} 15... Qg5+ {[%clk 0:02:34.7]} 16. Qg4 {[%clk 0:01:28.1]} 16...
Qxd2 {[%clk 0:02:32.4]} 17. Nf3 {[%clk 0:01:22]} 17... Qf4 {[%clk 0:02:26.4]}
18. Rad1 {[%clk 0:01:16.6]} 18... Qxg4+ {[%clk 0:02:20.6]} 19. hxg4 {[%clk
0:01:15.6]} 19... h6 {[%clk 0:02:06.2]} 20. Bd5 {[%clk 0:01:14]} 20... Nge7
{[%clk 0:02:03.2]} 21. Bxc6 {[%clk 0:01:09.4]} 21... Nxc6 {[%clk 0:02:02.7]} 22.
Rd5 {[%clk 0:01:08.9]} 22... f6 {[%clk 0:02:02.4]} 23. Rfd1 {[%clk 0:01:06]}
23... Kf7 {[%clk 0:01:50.8]} 24. Nh4 {[%clk 0:00:53.2]} 24... Rxd5 {[%clk
0:01:48.8]} 25. exd5 {[%clk 0:00:46.8]} 25... Ne7 {[%clk 0:01:43.4]} 26. c4
{[%clk 0:00:46.6]} 26... h5 {[%clk 0:01:37.2]} 27. gxh5 {[%clk 0:00:41]} 27...
Rh8 {[%clk 0:01:36.1]} 28. Ng6 {[%clk 0:00:32.6]} 28... Nxg6 {[%clk 0:01:31.9]}
29. hxg6+ {[%clk 0:00:33.5]} 29... Kxg6 {[%clk 0:01:32.4]} 30. d6 {[%clk
0:00:33.9]} 30... cxd6 {[%clk 0:01:32.2]} 31. Rxd6 {[%clk 0:00:33.5]} 31... Rc8
{[%clk 0:01:32.6]} 32. b3 {[%clk 0:00:33.2]} 32... Rc7 {[%clk 0:01:30.6]} 33. a4
{[%clk 0:00:31.8]} 33... Kf5 {[%clk 0:01:30.7]} 34. f3 {[%clk 0:00:24.5]} 34...
Kf4 {[%clk 0:01:26.6]} 35. Kf2 {[%clk 0:00:20.7]} 35... Rf7 {[%clk 0:01:12.1]}
36. Rb6 {[%clk 0:00:19]} 36... Rd7 {[%clk 0:01:06]} 37. Rb4 {[%clk 0:00:16.5]}
37... f5 {[%clk 0:00:53.4]} 38. Ke2 {[%clk 0:00:15.2]} 38... g5 {[%clk
0:00:51.3]} 39. c5+ {[%clk 0:00:14.9]} 39... e4 {[%clk 0:00:51.5]} 40. fxe4
{[%clk 0:00:14.8]} 40... fxe4 {[%clk 0:00:52.1]} 41. Rb6 {[%clk 0:00:12.1]}
41... g4 {[%clk 0:00:48.4]} 42. c6 {[%clk 0:00:10.6]} 42... bxc6 {[%clk
0:00:48.1]} 43. Rxc6 {[%clk 0:00:11.5]} 43... a5 {[%clk 0:00:48.2]} 44. Rf6+
{[%clk 0:00:09.6]} 44... Ke5 {[%clk 0:00:47.8]} 45. Rh6 {[%clk 0:00:08.7]} 45...
Rd3 {[%clk 0:00:44.8]} 46. Rh5+ {[%clk 0:00:08.3]} 46... Kf4 {[%clk 0:00:44.7]}
47. Rxa5 {[%clk 0:00:06.9]} 47... Rxb3 {[%clk 0:00:44.9]} 48. Ra8 {[%clk
0:00:04.9]} 48... Rb2+ {[%clk 0:00:44.8]} 49. Kf1 {[%clk 0:00:05]} 49... Ra2
{[%clk 0:00:43.8]} 50. a5 {[%clk 0:00:05]} 50... Kf3 {[%clk 0:00:43.2]} 51. Rf8+
{[%clk 0:00:03.6]} 51... Ke3 {[%clk 0:00:43.5]} 52. Ra8 {[%clk 0:00:04]} 52...
g3 {[%clk 0:00:39.3]} 53. a6 {[%clk 0:00:03]} 53... g2+ {[%clk 0:00:34.9]} 54.
Kg1 {[%clk 0:00:02.7]} 54... Kf3 {[%clk 0:00:34.9]} 55. Rf8+ {[%clk 0:00:02.5]}
55... Kg3 {[%clk 0:00:33.4]} 56. Rg8+ {[%clk 0:00:02.6]} 56... Kf4 {[%clk
0:00:33.8]} 57. Rf8+ {[%clk 0:00:02.8]} 57... Ke3 {[%clk 0:00:31.9]} 58. Ra8
{[%clk 0:00:02.8]} 58... Kd3 {[%clk 0:00:30.7]} 59. a7 {[%clk 0:00:02.7]} 59...
Ke3 {[%clk 0:00:29.7]} 60. Kh2 {[%clk 0:00:02.9]} 60... Ke2 {[%clk 0:00:13.6]}
61. Re8 {[%clk 0:00:02.4]} 61... Rxa7 {[%clk 0:00:11.5]} 62. Rxe4+ {[%clk
0:00:02.2]} 62... Kf3 {[%clk 0:00:11.3]} 63. Rh4 {[%clk 0:00:02.3]} 63... Ra1
{[%clk 0:00:10]} 64. Rh3+ {[%clk 0:00:01.9]} 64... Kf2 {[%clk 0:00:09.8]} 65.
Rg3 {[%clk 0:00:01.7]} 65... Rh1# {[%clk 0:00:09.1]} 0-1

[Event "*** Titled Tuesday Blitz"]
[Site "Chess.com"]
[Date "2021.03.09"]
[Round "5"]
[White "kuba2006"]
[Black "crazy_but_lazy"]
[Result "0-1"]
[WhiteElo "2339"]
[BlackElo "2510"]
[TimeControl "180+1"]
[EndTime "11:00:22 PST"]
[Termination "crazy_but_lazy won by checkmate"]

1. b3 {[%clk 0:03:00.9]} 1... e5 {[%clk 0:02:59.5]} 2. Bb2 {[%clk 0:03:01.8]}
2... d6 {[%clk 0:02:59.2]} 3. e3 {[%clk 0:03:01.5]} 3... Nc6 {[%clk 0:02:57.8]}
4. Bb5 {[%clk 0:03:01.2]} 4... g6 {[%clk 0:02:57.7]} 5. Nf3 {[%clk 0:03:01]}
5... Bg7 {[%clk 0:02:57.8]} 6. O-O {[%clk 0:03:01.3]} 6... Ne7 {[%clk
0:02:57.5]} 7. d4 {[%clk 0:02:59.1]} 7... exd4 {[%clk 0:02:55.7]} 8. Bxd4 {[%clk
0:02:58]} 8... O-O {[%clk 0:02:43.9]} 9. Bxg7 {[%clk 0:02:57.8]} 9... Kxg7
{[%clk 0:02:44.8]} 10. Be2 {[%clk 0:02:34.6]} 10... Be6 {[%clk 0:02:36.5]} 11.
c4 {[%clk 0:02:33.8]} 11... Nf5 {[%clk 0:02:29.5]} 12. Nc3 {[%clk 0:02:30.9]}
12... Qf6 {[%clk 0:02:28.2]} 13. Nd5 {[%clk 0:02:18.8]} 13... Bxd5 {[%clk
0:02:27.2]} 14. Qxd5 {[%clk 0:02:19.7]} 14... Rae8 {[%clk 0:02:23.4]} 15. Rad1
{[%clk 0:02:12.9]} 15... Qe6 {[%clk 0:02:00.4]} 16. Qxe6 {[%clk 0:01:56.9]}
16... Rxe6 {[%clk 0:01:51.6]} 17. Nd2 {[%clk 0:01:49.1]} 17... Rfe8 {[%clk
0:01:39.8]} 18. Bf3 {[%clk 0:01:47.8]} 18... Nh4 {[%clk 0:01:36]} 19. Bd5 {[%clk
0:01:44]} 19... Re5 {[%clk 0:01:34]} 20. Nf3 {[%clk 0:01:24.3]} 20... Nxf3+
{[%clk 0:01:33.3]} 21. Bxf3 {[%clk 0:01:25.2]} 21... h5 {[%clk 0:01:31.6]} 22.
Rd2 {[%clk 0:01:23]} 22... a5 {[%clk 0:01:22]} 23. Rfd1 {[%clk 0:01:18.6]} 23...
Nd8 {[%clk 0:01:19.9]} 24. a3 {[%clk 0:01:05.6]} 24... f5 {[%clk 0:01:08.8]} 25.
g3 {[%clk 0:01:00.8]} 25... b6 {[%clk 0:01:06.6]} 26. b4 {[%clk 0:00:59.3]}
26... R8e7 {[%clk 0:01:05]} 27. Rd5 {[%clk 0:00:41.7]} 27... axb4 {[%clk
0:00:50.6]} 28. axb4 {[%clk 0:00:41]} 28... Nc6 {[%clk 0:00:46.8]} 29. b5 {[%clk
0:00:26.3]} 29... Na5 {[%clk 0:00:41.9]} 30. Rxe5 {[%clk 0:00:21.2]} 30... Rxe5
{[%clk 0:00:42.8]} 31. Bd5 {[%clk 0:00:21.2]} 31... Nb3 {[%clk 0:00:43.1]} 32.
Kg2 {[%clk 0:00:17.1]} 32... Nc5 {[%clk 0:00:35.7]} 33. Ra1 {[%clk 0:00:16.8]}
33... Re7 {[%clk 0:00:32.9]} 34. Ra8 {[%clk 0:00:16.4]} 34... Nd3 {[%clk
0:00:29.7]} 35. Rg8+ {[%clk 0:00:15.1]} 35... Kf6 {[%clk 0:00:29.9]} 36. Rf8+
{[%clk 0:00:14.9]} 36... Kg7 {[%clk 0:00:28]} 37. Rg8+ {[%clk 0:00:13.4]} 37...
Kh7 {[%clk 0:00:26]} 38. Rc8 {[%clk 0:00:11.5]} 38... Nb4 {[%clk 0:00:24.8]} 39.
Kf3 {[%clk 0:00:10]} 39... Kg7 {[%clk 0:00:16.3]} 40. h3 {[%clk 0:00:07.1]}
40... Kf6 {[%clk 0:00:14.2]} 41. Kf4 {[%clk 0:00:05.2]} 41... Nxd5+ {[%clk
0:00:05.9]} 42. cxd5 {[%clk 0:00:06.1]} 42... g5+ {[%clk 0:00:06.7]} 43. Kf3
{[%clk 0:00:06.6]} 43... Re5 {[%clk 0:00:07.6]} 44. Rxc7 {[%clk 0:00:06.4]}
44... Rxd5 {[%clk 0:00:08]} 45. Rc6 {[%clk 0:00:06.8]} 45... Rxb5 {[%clk
0:00:08]} 46. Rxd6+ {[%clk 0:00:07.2]} 46... Ke5 {[%clk 0:00:08.3]} 47. Rh6
{[%clk 0:00:07.1]} 47... g4+ {[%clk 0:00:08.4]} 48. Kg2 {[%clk 0:00:06.7]} 48...
Rb1 {[%clk 0:00:06.4]} 49. Rxh5 {[%clk 0:00:05.2]} 49... gxh3+ {[%clk
0:00:06.9]} 50. Rxh3 {[%clk 0:00:04.8]} 50... Ke4 {[%clk 0:00:07.5]} 51. Rh8
{[%clk 0:00:05]} 51... b5 {[%clk 0:00:07.3]} 52. Re8+ {[%clk 0:00:05.5]} 52...
Kd5 {[%clk 0:00:07.5]} 53. Kf3 {[%clk 0:00:05.8]} 53... b4 {[%clk 0:00:07.3]}
54. Kf4 {[%clk 0:00:06.1]} 54... b3 {[%clk 0:00:07.6]} 55. Kxf5 {[%clk
0:00:06.3]} 55... Rf1 {[%clk 0:00:08.2]} 56. f4 {[%clk 0:00:04.1]} 56... b2
{[%clk 0:00:08.1]} 57. Rd8+ {[%clk 0:00:05]} 57... Kc6 {[%clk 0:00:08]} 58. g4
{[%clk 0:00:04.8]} 58... b1=Q+ {[%clk 0:00:08]} 59. Kf6 {[%clk 0:00:03.8]} 59...
Qe4 {[%clk 0:00:08]} 60. f5 {[%clk 0:00:03.6]} 60... Rh1 {[%clk 0:00:06.3]} 61.
g5 {[%clk 0:00:03.8]} 61... Rf1 {[%clk 0:00:05.9]} 62. Rc8+ {[%clk 0:00:03]}
62... Kd7 {[%clk 0:00:05.6]} 63. Rc5 {[%clk 0:00:02.8]} 63... Qxe3 {[%clk
0:00:05.4]} 64. Re5 {[%clk 0:00:02.8]} 64... Qd4 {[%clk 0:00:04.7]} 65. g6
{[%clk 0:00:03.4]} 65... Re1 {[%clk 0:00:05.2]} 66. g7 {[%clk 0:00:03.8]} 66...
Qxe5+ {[%clk 0:00:05.6]} 67. Kf7 {[%clk 0:00:04.7]} 67... Qe7+ {[%clk
0:00:05.9]} 68. Kg8 {[%clk 0:00:04]} 68... Rg1 {[%clk 0:00:06.4]} 69. f6 {[%clk
0:00:04.3]} 69... Qxf6 {[%clk 0:00:06.9]} 70. Kh7 {[%clk 0:00:04.7]} 70... Qxg7#
{[%clk 0:00:07.8]} 0-1

[Event "*** Titled Tuesday Blitz"]
[Site "Chess.com"]
[Date "2021.03.09"]
[Round "5"]
[White "Kretov_Evgenij"]
[Black "Chesswizard_2007"]
[Result "1/2-1/2"]
[WhiteElo "2529"]
[BlackElo "2690"]
[TimeControl "180+1"]
[EndTime "11:00:43 PST"]
[Termination "Game drawn by agreement"]

1. d4 {[%clk 0:02:33]} 1... b6 {[%clk 0:02:57.4]} 2. c4 {[%clk 0:02:33.2]} 2...
Bb7 {[%clk 0:02:58.3]} 3. Nc3 {[%clk 0:02:33.8]} 3... d6 {[%clk 0:02:57.3]} 4.
Qc2 {[%clk 0:02:33]} 4... Nd7 {[%clk 0:02:58.2]} 5. e4 {[%clk 0:02:33.2]} 5...
e6 {[%clk 0:02:58.3]} 6. Be3 {[%clk 0:02:33.3]} 6... Be7 {[%clk 0:02:58.7]} 7.
Nf3 {[%clk 0:02:33]} 7... Ngf6 {[%clk 0:02:57.9]} 8. h3 {[%clk 0:02:33.3]} 8...
h6 {[%clk 0:02:56.7]} 9. Bd3 {[%clk 0:02:33.2]} 9... Nf8 {[%clk 0:02:53.4]} 10.
O-O-O {[%clk 0:02:28.8]} 10... N6h7 {[%clk 0:02:47]} 11. Kb1 {[%clk 0:02:26.3]}
11... Ng5 {[%clk 0:02:45.6]} 12. Nd2 {[%clk 0:02:24.8]} 12... f6 {[%clk
0:02:43.6]} 13. f4 {[%clk 0:02:24.7]} 13... Nf7 {[%clk 0:02:43.8]} 14. Nf3
{[%clk 0:02:23.8]} 14... Qd7 {[%clk 0:02:40.8]} 15. d5 {[%clk 0:02:08.3]} 15...
e5 {[%clk 0:02:39]} 16. c5 {[%clk 0:01:56.2]} 16... bxc5 {[%clk 0:02:23.1]} 17.
Bb5 {[%clk 0:01:56]} 17... c6 {[%clk 0:02:23.3]} 18. dxc6 {[%clk 0:01:54.9]}
18... Bxc6 {[%clk 0:02:24.2]} 19. Bxc6 {[%clk 0:01:52.8]} 19... Qxc6 {[%clk
0:02:25.1]} 20. Nd5 {[%clk 0:01:47.4]} 20... Ne6 {[%clk 0:02:23.8]} 21. Nxe7
{[%clk 0:01:46.9]} 21... Kxe7 {[%clk 0:02:24.7]} 22. Nh4 {[%clk 0:01:46.5]}
22... Rhd8 {[%clk 0:02:19.5]} 23. Ng6+ {[%clk 0:01:42.5]} 23... Ke8 {[%clk
0:02:17.8]} 24. fxe5 {[%clk 0:01:34.8]} 24... Nxe5 {[%clk 0:02:14.2]} 25. Nxe5
{[%clk 0:01:21.5]} 25... dxe5 {[%clk 0:02:15.1]} 26. Qc4 {[%clk 0:01:17.2]}
26... Rxd1+ {[%clk 0:01:33.2]} 27. Rxd1 {[%clk 0:01:16.3]} 27... Rd8 {[%clk
0:01:33.9]} 28. Rd5 {[%clk 0:01:14.4]} 28... h5 {[%clk 0:01:05.1]} 29. Bxc5
{[%clk 0:01:09.6]} 29... Rxd5 {[%clk 0:00:58.6]} 30. exd5 {[%clk 0:01:04.3]}
30... Qxc5 {[%clk 0:00:58.7]} 31. Qa4+ {[%clk 0:01:04]} 31... Ke7 {[%clk
0:00:59.3]} 32. dxe6 {[%clk 0:01:03.5]} 32... Qg1+ {[%clk 0:00:59.7]} 33. Kc2
{[%clk 0:01:03.6]} 33... Qxg2+ {[%clk 0:01:00.3]} 34. Kc1 {[%clk 0:01:00.4]}
34... Qf1+ {[%clk 0:00:57]} 35. Kd2 {[%clk 0:00:56.7]} 35... Qf2+ {[%clk
0:00:57]} 36. Kc1 {[%clk 0:00:55.8]} 36... Qc5+ {[%clk 0:00:55.2]} 37. Kb1
{[%clk 0:00:54.1]} 37... Qg1+ {[%clk 0:00:25.7]} 38. Kc2 {[%clk 0:00:53.8]}
38... Qg2+ {[%clk 0:00:25.8]} 39. Kb1 {[%clk 0:00:52.8]} 39... Qh1+ {[%clk
0:00:25]} 40. Kc2 {[%clk 0:00:52.7]} 40... Qb7 {[%clk 0:00:25.5]} 41. Kb1 {[%clk
0:00:52.4]} 41... Kxe6 {[%clk 0:00:22.8]} 42. Qe8+ {[%clk 0:00:52.1]} 42... Kd6
{[%clk 0:00:23.1]} 43. Qxh5 {[%clk 0:00:45.4]} 43... Qe4+ {[%clk 0:00:21.7]} 44.
Kc1 {[%clk 0:00:45.3]} 44... Qe1+ {[%clk 0:00:21.2]} 45. Kc2 {[%clk 0:00:45.2]}
45... Qe4+ {[%clk 0:00:21.6]} 46. Kc1 {[%clk 0:00:45.2]} 46... Qc4+ {[%clk
0:00:22]} 47. Kb1 {[%clk 0:00:44.7]} 47... Qd3+ {[%clk 0:00:19.7]} 48. Kc1
{[%clk 0:00:44.3]} 48... e4 {[%clk 0:00:17]} 49. Qe8 {[%clk 0:00:41.4]} 49...
Qe3+ {[%clk 0:00:16.9]} 50. Kd1 {[%clk 0:00:40.1]} 50... Qd3+ {[%clk 0:00:17.8]}
51. Ke1 {[%clk 0:00:38]} 51... Qb1+ {[%clk 0:00:17.5]} 52. Ke2 {[%clk
0:00:38.1]} 52... Qxb2+ {[%clk 0:00:18.1]} 53. Ke3 {[%clk 0:00:38.4]} 53... Qc3+
{[%clk 0:00:16.4]} 54. Kf2 {[%clk 0:00:37.6]} 54... Qf3+ {[%clk 0:00:16.3]} 55.
Ke1 {[%clk 0:00:37.4]} 55... Qe3+ {[%clk 0:00:15.4]} 56. Kd1 {[%clk 0:00:37.4]}
56... Qd4+ {[%clk 0:00:15.7]} 57. Ke1 {[%clk 0:00:37.3]} 57... Qa1+ {[%clk
0:00:15.1]} 58. Ke2 {[%clk 0:00:37.1]} 58... Qxa2+ {[%clk 0:00:16]} 59. Ke3
{[%clk 0:00:36.9]} 59... Qb3+ {[%clk 0:00:13.4]} 60. Ke2 {[%clk 0:00:37]} 60...
Qd3+ {[%clk 0:00:13]} 61. Ke1 {[%clk 0:00:37.2]} 61... Qe3+ {[%clk 0:00:13.2]}
62. Kd1 {[%clk 0:00:37.5]} 62... Qd3+ {[%clk 0:00:10.5]} 63. Ke1 {[%clk
0:00:37.8]} 63... a6 {[%clk 0:00:11.1]} 64. Qd8+ {[%clk 0:00:36.7]} 64... Ke5
{[%clk 0:00:11.6]} 65. Qc7+ {[%clk 0:00:36.4]} 65... Kf5 {[%clk 0:00:10]} 66.
Qxg7 {[%clk 0:00:36.2]} 66... Qe3+ {[%clk 0:00:07.6]} 67. Kd1 {[%clk 0:00:35.9]}
67... Qf3+ {[%clk 0:00:07.4]} 68. Ke1 {[%clk 0:00:36]} 68... Qf4 {[%clk
0:00:03.7]} 69. Qd7+ {[%clk 0:00:35]} 69... Ke5 {[%clk 0:00:04]} 70. Qc7+ {[%clk
0:00:34.6]} 70... Kf5 {[%clk 0:00:04.7]} 71. Qd7+ {[%clk 0:00:34.9]} 71... Kg5
{[%clk 0:00:05.1]} 72. Qg7+ {[%clk 0:00:34.9]} 72... Kh5 {[%clk 0:00:05.7]} 73.
Qh7+ {[%clk 0:00:34.3]} 73... Qh6 {[%clk 0:00:06.3]} 74. Qxe4 {[%clk 0:00:31.7]}
74... Qc1+ {[%clk 0:00:05.5]} 75. Ke2 {[%clk 0:00:31.5]} 75... Qb2+ {[%clk
0:00:05.8]} 76. Kf1 {[%clk 0:00:31.7]} 76... Qc1+ {[%clk 0:00:05.7]} 77. Ke2
{[%clk 0:00:31.6]} 77... Qg5 {[%clk 0:00:06]} 78. Qf3+ {[%clk 0:00:30.1]} 78...
Kg6 {[%clk 0:00:05.7]} 79. Qe4+ {[%clk 0:00:29.5]} 79... Kg7 {[%clk 0:00:05.4]}
80. Qb7+ {[%clk 0:00:29.2]} 80... Kh6 {[%clk 0:00:05.6]} 81. Qxa6 {[%clk
0:00:29.5]} 81... Qg2+ {[%clk 0:00:05.7]} 82. Ke1 {[%clk 0:00:29.7]} 82... Qe4+
{[%clk 0:00:03.7]} 83. Kf2 {[%clk 0:00:29.5]} 83... Qf4+ {[%clk 0:00:03.7]} 84.
Kg2 {[%clk 0:00:29.8]} 84... Kg5 {[%clk 0:00:03.6]} 85. Qb5+ {[%clk 0:00:28.1]}
85... f5 {[%clk 0:00:03.9]} 86. Qe2 {[%clk 0:00:28.2]} 86... Qh4 {[%clk
0:00:03.1]} 87. Qe7+ {[%clk 0:00:27.6]} 87... Kh5 {[%clk 0:00:03.3]} 88. Qxh4+
{[%clk 0:00:27]} 1/2-1/2